bitfinex-derivatives/quotes_ETHF0:USTF0_20260203
["timestamp","ask_amount","ask_price","bid_price","bid_amount"]
[1770086106412,6.54375839,2324.4,2323.4,0.2154]
[1770086106413,2.49801495,2324.4,2324.2,6.7750057]
[1770086106612,37.39873392,2324.6,2323.9,6.7750057]
[1770086106917,37.39873392,2324.6,2323.9,2.47420569]
[1770086107116,37.39873392,2324.7,2324.1,4.30080001]
[1770086107317,37.39873392,2324.7,2324.0,4.30080001]
[1770086107519,37.39873392,2324.7,2324.1,4.30080001]
[1770086108119,37.40412925,2325.1,2324.4,2.47420569]
[1770086108718,0.00539533,2325.1,2324.8,6.7750057]
[1770086108919,0.00539533,2325.1,2324.8,0.00406422]
[1770086109116,37.39873392,2325.5,2325.0,3.07880002]
[1770086109419,47.08840291,2325.7,2325.0,3.07880002]
[1770086109617,47.08840291,2325.7,2324.8,2.47826991]
[1770086109920,47.08840291,2325.7,2325.0,3.07880002]
[1770086110214,9.69503736,2325.7,2325.0,3.07880002]
[1770086110418,9.69503736,2325.7,2325.1,3.07880002]
[1770086110419,2.43466899,2325.6,2325.1,3.07880002]
[1770086110620,2.43466899,2325.6,2325.0,3.07880002]
[1770086110820,2.43466899,2325.6,2325.1,3.07880002]
[1770086111021,2.43466899,2325.6,2324.8,0.00406422]
[1770086112313,2.43466899,2325.6,2325.0,3.07880002]
[1770086112818,2.43466899,2325.6,2325.1,3.07880002]
[1770086113119,2.43466899,2325.6,2325.0,3.07880002]
[1770086113719,2.43466899,2325.6,2325.1,3.07880002]
[1770086113922,37.39873392,2326.1,2325.3,2.47420569]
[1770086114118,37.39873392,2326.4,2325.6,2.47420569]
[1770086114323,9.76366899,2326.4,2325.6,2.47420569]
[1770086114622,9.76366899,2326.4,2325.8,3.07880002]
[1770086115022,2.43466899,2326.3,2325.3,2.47420569]
[1770086116122,1.43634792,2326.1,2325.0,2.47420569]
[1770086116422,1.65149792,2326.1,2324.8,2.47826991]
[1770086117520,7.349,2326.0,2324.8,2.69353991]
[1770086118726,1.43021841,2325.9,2324.8,2.47826991]
[1770086121022,7.349,2326.0,2324.8,2.47826991]
[1770086121428,7.349,2326.0,2324.8,2.69353991]
[1770086121728,8.37193395,2326.4,2324.8,2.69353991]
[1770086122027,3.85327262,2326.3,2324.8,2.69353991]
[1770086122226,8.37193395,2326.4,2324.8,2.69353991]
[1770086122423,3.85257894,2326.3,2324.8,2.69353991]
[1770086122621,8.37193395,2326.4,2324.8,2.69353991]
[1770086122925,5.27542526,2326.3,2324.8,2.69353991]
[1770086123125,1.42278578,2326.3,2324.8,2.69353991]
[1770086123322,1.42278578,2326.3,2325.0,2.38489207]
[1770086123920,0.00331636,2326.4,2325.2,2.38489207]
[1770086124121,0.00331636,2326.4,2325.2,2.60012207]
[1770086124326,0.00331636,2326.4,2325.4,2.38489207]
[1770086125532,1.42671566,2326.4,2325.1,2.38489207]
[1770086125730,1.42671566,2326.4,2324.8,2.60422629]
[1770086125731,1.4233993,2326.2,2324.8,2.60422629]
[1770086126931,1.42457401,2326.0,2324.8,2.60422629]
[1770086127527,1.42457401,2326.0,2324.8,2.38895629]
[1770086130031,38.81418787,2326.3,2324.8,2.60422629]
[1770086130332,3.85935248,2326.2,2324.8,2.60422629]
[1770086130534,1.41545395,2326.3,2324.8,2.60422629]
[1770086130831,3.85972663,2326.2,2324.8,2.60422629]
[1770086131025,1.41545395,2326.3,2324.8,2.60422629]
[1770086131227,3.85972627,2326.2,2324.8,2.60422629]
[1770086131427,0.00331636,2326.4,2324.8,2.60422629]
[1770086131632,3.86316508,2326.3,2325.0,2.38489207]
[1770086131833,3.86316508,2326.2,2325.0,2.38489207]
[1770086132033,0.00331636,2326.4,2325.0,2.38489207]
[1770086132233,3.86316158,2326.3,2325.0,2.38489207]
[1770086132433,1.41277638,2326.1,2325.0,2.38489207]
[1770086133435,1.41609274,2326.4,2325.0,2.38489207]
[1770086133734,5.2788112,2326.3,2325.0,2.38489207]
[1770086133928,3.86603482,2326.2,2325.0,2.38489207]
[1770086134132,3.86603482,2326.2,2325.0,2.60014207]
[1770086136236,3.86603482,2326.1,2325.0,2.60014207]
[1770086136436,3.86603482,2326.0,2325.0,2.60014207]
[1770086136734,38.8115103,2326.3,2325.0,2.60014207]
[1770086136930,3.87220605,2326.2,2325.0,2.60014207]
[1770086137134,37.39873392,2326.3,2325.0,2.38489207]
[1770086137336,0.00331636,2326.4,2325.0,2.38489207]
[1770086137337,1.40953473,2326.9,2325.6,2.38489207]
[1770086137536,1.40953473,2326.9,2325.9,0.21517]
[1770086138136,1.40953473,2326.9,2325.9,2.60006207]
[1770086138338,1.41267164,2326.9,2325.9,2.60006207]
[1770086139735,1.41267164,2326.9,2325.1,7.8775712]
[1770086140038,1.41267164,2326.9,2325.5,2.60009207]
[1770086141030,1.41267164,2326.9,2325.7,2.38489207]
[1770086142740,2.44838065,2326.8,2325.6,0.2152]
[1770086143140,2.44838065,2326.8,2325.6,2.60009207]
[1770086144233,2.44838065,2326.8,2325.8,2.38489207]
[1770086145240,2.44838065,2326.8,2325.7,0.21519]
[1770086145538,2.44838065,2326.8,2325.7,2.60008207]
[1770086145735,0.00313691,2326.9,2325.9,2.60006207]
[1770086145932,0.00313691,2326.9,2326.1,2.38489207]
[1770086146439,2.45151756,2326.9,2326.1,2.38489207]
[1770086147734,2.45151756,2326.9,2326.0,0.21516]
[1770086147735,2.45151756,2326.9,2325.5,2.60009207]
[1770086147934,2.44838065,2326.7,2325.5,2.60009207]
[1770086149242,0.21509,2326.8,2325.5,2.60009207]
[1770086149243,2.44838065,2326.5,2325.5,2.60009207]
[1770086149541,2.44838065,2326.4,2325.5,2.60009207]
[1770086154142,2.33684133,2326.7,2325.5,2.60009207]
[1770086154346,5.99963341,2326.6,2325.5,2.60009207]
[1770086154548,3.66279208,2326.5,2325.5,2.60009207]
[1770086155448,5.99963341,2326.5,2325.5,2.60009207]
[1770086155651,3.66279208,2326.4,2325.5,2.60009207]
[1770086156351,3.66279208,2326.4,2325.7,2.50904046]
[1770086157549,2.33684133,2326.3,2325.2,2.50904046]
[1770086157753,2.33684133,2326.1,2325.0,2.72428046]
[1770086157954,2.33684133,2325.9,2325.0,2.72428046]
[1770086158349,2.33684133,2326.1,2325.2,2.50904046]
[1770086158554,3.66303776,2326.0,2325.2,2.50904046]
[1770086158852,2.33684133,2326.1,2325.2,2.50904046]
[1770086159053,3.66306984,2326.0,2325.2,2.50904046]
[1770086159260,2.33684133,2326.1,2325.2,2.50904046]
[1770086159461,3.66361375,2326.0,2325.2,2.50904046]
[1770086159661,2.33684133,2326.1,2325.2,2.50904046]
[1770086159862,6.00047269,2326.0,2325.2,2.50904046]
[1770086160066,2.33684133,2326.0,2325.2,2.50904046]
[1770086161160,3.66404582,2325.9,2325.2,2.50904046]
[1770086161359,2.33684133,2326.0,2325.2,2.50904046]
[1770086162364,2.33684133,2326.0,2324.8,2.51310468]
[1770086162365,2.33684133,2325.8,2324.8,2.51310468]
[1770086162561,2.33684133,2325.6,2324.8,2.51310468]
[1770086163059,2.33684133,2325.9,2324.8,2.51310468]
[1770086163257,2.33684133,2325.7,2324.8,2.51310468]
[1770086165364,2.33684133,2325.7,2324.8,0.00406422]
[1770086165564,2.33684133,2325.7,2324.8,2.51310468]
[1770086166365,2.33684133,2325.7,2324.8,0.00406422]
[1770086167766,2.33684133,2325.5,2324.8,0.00406422]
[1770086168666,2.33684133,2325.5,2324.5,2.72434046]
[1770086169567,2.33684133,2325.5,2324.5,2.72862795]
[1770086172170,2.33684133,2325.5,2324.5,2.51332795]
[1770086172368,2.33684133,2325.5,2324.5,0.00428749]
[1770086172571,2.33684133,2325.3,2324.5,0.00428749]
[1770086173372,2.55207133,2325.3,2324.5,0.00428749]
[1770086173574,2.33684133,2325.3,2324.5,0.00428749]
[1770086174067,2.33684133,2325.1,2323.7,2.50904046]
[1770086174272,2.55209133,2325.1,2323.7,2.50904046]
[1770086174766,2.51763084,2325.3,2323.7,2.50904046]
[1770086174767,2.33684133,2324.9,2323.7,2.50904046]
[1770086174966,2.55211133,2324.9,2323.7,2.50904046]
[1770086175167,2.5576237,2324.9,2323.7,2.51311559]
[1770086180681,2.36658078,2324.5,2323.7,0.00407513]
[1770086181371,2.36658078,2324.8,2323.7,2.45976324]
[1770086185076,2.58188078,2324.5,2323.7,0.00407513]
[1770086185272,2.36658078,2324.3,2323.2,2.45568811]
[1770086186181,2.36658078,2324.1,2323.0,5.46768811]
[1770086186379,2.36658078,2324.1,2323.0,5.4713666]
[1770086186579,2.36658078,2324.1,2323.1,2.45568811]
[1770086187076,2.58192078,2324.1,2323.0,0.00367849]
[1770086189274,0.21535,2324.0,2323.0,0.00367849]
[1770086189485,2.36658078,2323.3,2322.0,2.45568811]
[1770086189682,2.58199078,2323.3,2322.0,2.45568811]
[1770086190381,2.58199078,2323.3,2322.0,2.46004025]
[1770086190576,2.58199078,2323.3,2322.0,0.00435214]
[1770086192082,2.36658078,2323.1,2322.0,0.00435214]
[1770086192283,2.36658078,2322.9,2321.4,2.45568811]
[1770086192486,2.58205078,2322.7,2321.4,2.45568811]
[1770086193182,2.58205078,2322.7,2321.1,2.45568811]
[1770086193383,2.58205078,2322.7,2321.1,2.67444692]
[1770086193585,2.36658078,2322.5,2321.1,2.67444692]
[1770086197991,2.36658078,2322.5,2321.1,2.45883692]
[1770086198293,2.36658078,2322.0,2321.1,0.00314881]
[1770086198489,2.36658078,2321.9,2321.1,0.00314881]
[1770086199384,2.58212078,2321.9,2320.5,2.45568811]
[1770086200089,2.36658078,2321.9,2320.5,2.67135811]
[1770086200293,2.36658078,2321.9,2320.5,2.67643187]
[1770086202393,2.36658078,2321.9,2320.5,2.46076187]
[1770086202592,2.36658078,2321.6,2320.5,2.46076187]
[1770086202986,2.36658078,2321.4,2320.5,0.00507376]
[1770086203290,2.36658078,2321.2,2319.9,2.45568811]
[1770086203493,0.00367954,2321.4,2319.6,2.45568811]
[1770086203494,2.58223078,2320.8,2319.6,2.45568811]
[1770086204293,2.58223078,2320.8,2319.6,2.46088344]
[1770086204591,2.36658078,2320.8,2319.6,2.46088344]
[1770086204792,2.36658078,2320.8,2319.6,2.67663344]
[1770086205789,2.36658078,2320.8,2319.8,2.45568811]
[1770086206487,2.36658078,2321.1,2319.8,2.45568811]
[1770086207992,2.36658078,2321.1,2319.9,0.21572]
[1770086208192,2.36658078,2321.1,2320.0,2.45568811]
[1770086210588,2.38892809,2321.4,2320.2,2.51342027]
[1770086210896,2.38892809,2321.4,2320.4,2.51342027]
[1770086211791,0.00367954,2321.4,2320.8,2.51342027]
[1770086211995,2.38524855,2322.0,2320.8,2.72906027]
[1770086212897,2.38950776,2322.0,2320.8,2.72906027]
[1770086217597,2.38950776,2322.0,2321.0,2.51342027]
[1770086219598,2.38950776,2322.0,2320.9,2.51342027]
[1770086220300,2.38524855,2321.8,2320.6,2.51342027]
[1770086220601,2.38524855,2321.6,2320.6,2.51342027]
[1770086220803,2.38524855,2321.4,2320.2,3.017]
[1770086221096,2.38524855,2321.2,2320.0,2.51342027]
[1770086221295,2.38524855,2321.0,2320.0,2.51342027]
[1770086221896,4.85809462,2321.3,2320.0,2.51342027]
[1770086222094,3.63119159,2321.2,2320.3,2.51342027]
[1770086222300,4.85809462,2321.6,2320.3,2.51342027]
[1770086222500,4.85809462,2321.8,2320.5,2.51342027]
[1770086222697,6.01921141,2321.7,2320.5,2.51342027]
[1770086222999,2.38524855,2321.5,2320.5,2.51342027]
[1770086223700,2.38524855,2321.6,2320.5,2.51342027]
[1770086223902,3.6308097,2321.5,2320.5,2.51342027]
[1770086224093,2.38524855,2321.6,2320.5,2.51342027]
[1770086224297,4.85809462,2321.8,2320.5,2.51342027]
[1770086224498,2.38524855,2321.6,2320.5,2.51342027]
[1770086229507,6.02001416,2321.5,2320.5,2.51342027]
[1770086229808,2.38524855,2321.5,2320.5,2.72909027]
[1770086230713,2.47710528,2322.0,2320.9,2.51342027]
[1770086231008,0.00425921,2322.0,2321.1,2.51342027]
[1770086231612,0.00425921,2322.0,2321.1,2.72903027]
[1770086232714,2.38950776,2322.0,2321.1,2.72903027]
[1770086233119,0.00425921,2322.0,2321.3,2.51342027]
[1770086233311,0.00425921,2322.0,2321.3,2.51731982]
[1770086237814,2.38950776,2322.0,2321.3,2.51731982]
[1770086238216,2.38950776,2322.0,2321.3,0.00389955]
[1770086238614,6.01778622,2321.9,2321.3,0.00389955]
[1770086238815,2.38524855,2321.9,2321.3,0.00389955]
[1770086240014,0.00425921,2322.0,2321.3,2.51731982]
[1770086240219,0.00425921,2322.0,2321.3,2.73291982]
[1770086241518,4.78780132,2322.4,2321.3,2.73291982]
[1770086241722,3.67170043,2322.3,2321.3,2.73291982]
[1770086241918,3.67170043,2322.2,2321.3,2.73291982]
[1770086242127,4.78780132,2322.4,2321.3,2.73291982]
[1770086242323,3.67079906,2322.3,2321.3,2.73291982]
[1770086242624,0.00372813,2322.3,2321.3,2.73291982]
[1770086244126,2.31868338,2322.3,2321.3,2.73291982]
[1770086244326,5.98506272,2322.2,2321.3,2.73291982]
[1770086244521,2.31495525,2322.2,2321.3,2.73291982]
[1770086247822,0.00372813,2322.3,2321.5,2.32264331]
[1770086251126,2.31868338,2322.3,2321.4,0.21558]
[1770086251323,2.31868338,2322.3,2321.3,2.32654286]
[1770086252329,5.99234913,2322.2,2321.3,2.32654286]
[1770086252529,2.31495525,2322.2,2321.3,2.32654286]
[1770086252730,0.00372813,2322.3,2321.3,2.32654286]
[1770086252731,2.31495525,2322.0,2321.3,0.00389955]
[1770086254531,5.99631777,2321.9,2321.3,0.00389955]
[1770086254731,2.31495525,2321.9,2321.3,0.00389955]
[1770086256433,2.31495525,2322.0,2321.3,0.00389955]
[1770086256634,2.31495525,2321.8,2320.9,2.53827331]
[1770086257633,2.31495525,2321.8,2320.9,2.54310591]
[1770086258532,4.78780132,2322.0,2320.9,2.54310591]
[1770086258728,2.31495525,2321.8,2320.9,2.54310591]
[1770086260228,2.31495525,2321.8,2320.9,2.32747591]
[1770086260436,6.00493405,2321.7,2320.9,2.32747591]
[1770086260634,2.31495525,2321.7,2320.9,2.32747591]
[1770086261435,2.31495525,2321.9,2320.9,2.32747591]
[1770086261733,3.70428239,2321.8,2320.9,2.32747591]
[1770086261933,2.31495525,2321.9,2320.9,2.32747591]
[1770086262134,6.017931,2321.8,2320.9,2.32747591]
[1770086262333,2.31495525,2321.8,2320.9,2.32747591]
[1770086264040,6.00283796,2321.7,2320.9,2.32747591]
[1770086264338,2.31495525,2321.7,2320.9,2.32747591]
[1770086269642,2.31495525,2321.5,2320.9,0.0048326]
[1770086271942,5.01096925,2321.8,2321.0,2.53441345]
[1770086272140,3.69270202,2321.7,2321.0,2.53441345]
[1770086272437,5.01096925,2321.9,2321.0,2.53441345]
[1770086272641,3.69316478,2321.8,2321.0,2.53441345]
[1770086272840,5.01096925,2321.9,2321.0,2.53441345]
[1770086272841,3.69316478,2321.7,2321.0,2.53441345]
[1770086273042,2.47284607,2321.9,2321.0,2.53441345]
[1770086273342,2.53812318,2322.0,2321.0,2.53441345]
[1770086273543,3.69381992,2321.9,2321.0,2.53441345]
[1770086273742,2.53812318,2322.0,2321.0,2.53441345]
[1770086273934,3.6928285,2321.9,2321.0,2.53441345]
[1770086274137,2.47284607,2322.1,2321.0,2.53441345]
[1770086274334,6.23099688,2322.1,2321.3,2.53441345]
[1770086274538,6.23099688,2322.0,2321.3,2.53441345]
[1770086274742,2.53812318,2322.0,2321.3,2.53441345]
[1770086275237,2.53812318,2322.2,2321.3,2.53441345]
[1770086275440,3.69357855,2322.1,2321.3,2.75000345]
[1770086275638,0.00372813,2322.3,2321.3,2.75000345]
[1770086275941,3.69434158,2322.2,2321.3,2.75000345]
[1770086276141,0.00372813,2322.3,2321.3,2.75000345]
[1770086276142,2.54185131,2322.3,2321.3,2.75000345]
[1770086278846,2.53812318,2322.1,2321.3,2.75000345]
[1770086280942,0.00372813,2322.3,2321.5,2.53441345]
[1770086282249,2.54185131,2322.3,2321.3,2.53441345]
[1770086282641,2.53812318,2322.1,2320.9,0.0048326]
[1770086282839,2.53812318,2321.9,2320.9,0.0048326]
[1770086283045,2.53812318,2321.4,2320.2,2.53441345]
[1770086283248,2.53812318,2321.2,2319.9,2.53441345]
[1770086283451,2.53812318,2321.0,2319.9,2.53441345]
[1770086284045,2.53812318,2320.8,2319.9,0.00407715]
[1770086284248,2.53812318,2320.6,2319.3,2.53441345]
[1770086284652,2.53812318,2320.4,2319.3,2.53441345]
[1770086285348,2.54234034,2320.4,2319.3,2.53797531]
[1770086286846,2.54234034,2320.4,2319.3,0.00356186]
[1770086287047,2.53812318,2320.2,2319.3,0.00356186]
[1770086287750,2.75382318,2320.2,2318.7,2.53441345]
[1770086288349,2.53812318,2320.2,2318.7,2.53441345]
[1770086288753,2.53812318,2320.2,2318.7,2.53955575]
[1770086289051,2.53812318,2320.2,2318.9,2.53441345]
[1770086289254,2.53812318,2320.2,2318.9,2.75023345]
[1770086289955,2.53812318,2320.2,2318.9,2.53441345]
[1770086291647,2.53812318,2320.2,2318.7,0.0051423]
[1770086291848,2.53812318,2320.2,2318.7,2.53955575]
[1770086294155,2.53812318,2320.2,2318.9,2.53441345]
[1770086295952,2.53812318,2320.2,2318.9,2.75023345]
[1770086298352,2.53812318,2320.2,2318.7,0.0051423]
[1770086298353,2.75382318,2320.2,2318.7,2.53955575]
[1770086298553,2.75382318,2320.2,2318.7,2.75538575]
[1770086298749,2.53812318,2320.2,2318.9,2.53441345]
[1770086298955,2.53812318,2320.2,2319.1,2.53441345]
[1770086299149,2.53812318,2320.2,2319.1,2.75021345]
[1770086299358,2.53812318,2320.2,2319.3,2.53441345]
[1770086300060,2.54234034,2320.4,2319.3,2.53441345]
[1770086304265,2.54234034,2320.4,2319.2,2.29632532]
[1770086310357,2.54234034,2320.4,2318.9,2.29632532]
[1770086310563,2.44249139,2320.2,2318.9,2.29632532]
[1770086312367,2.44249139,2320.0,2318.9,2.29632532]
[1770086313060,5.13103746,2320.3,2319.1,2.29632532]
[1770086313264,8.5440129,2320.2,2319.1,2.51212532]
[1770086313460,3.62867544,2320.1,2319.1,2.51212532]
[1770086313663,6.07116683,2320.1,2319.1,2.51212532]
[1770086313966,2.44249139,2320.0,2319.1,2.51212532]
[1770086314163,2.44249139,2319.8,2318.8,2.29632532]
[1770086314459,2.44249139,2319.8,2318.3,0.43783456]
[1770086314460,2.44249139,2319.0,2318.3,0.22196456]
[1770086314864,4.91533746,2319.3,2318.3,2.51828988]
[1770086315064,6.07427927,2319.2,2318.3,2.51828988]
[1770086315265,2.44249139,2319.2,2318.3,2.51828988]
[1770086315465,2.44249139,2319.2,2318.3,2.52362681]
[1770086316160,2.44249139,2319.7,2318.5,2.29632532]
[1770086316367,6.07236923,2319.6,2318.5,2.29632532]
[1770086316663,2.44249139,2319.6,2318.5,2.51218532]
[1770086316868,2.44249139,2319.7,2318.5,2.51218532]
[1770086317568,2.44249139,2319.6,2318.5,2.51218532]
[1770086318270,9.56649139,2319.8,2318.7,2.29632532]
[1770086318467,2.44249139,2319.8,2318.7,2.29632532]
[1770086319868,3.019,2319.9,2318.7,2.51216532]
[1770086320168,3.60158297,2319.8,2318.7,2.51216532]
[1770086320468,2.44249139,2319.9,2318.7,2.51216532]
[1770086320666,6.04319533,2319.8,2318.7,2.51216532]
[1770086320867,2.44249139,2319.8,2318.7,2.51216532]
[1770086321561,2.44249139,2320.1,2319.0,2.29632532]
[1770086321763,3.60084669,2320.0,2319.0,2.29632532]
[1770086321967,2.44249139,2320.1,2319.0,2.29632532]
[1770086322167,3.60081491,2320.0,2319.0,2.29632532]
[1770086322461,2.44249139,2320.1,2319.0,2.29632532]
[1770086322668,3.60008248,2320.0,2319.0,2.29632532]
[1770086322862,2.44249139,2320.1,2319.0,2.29632532]
[1770086323066,3.59971677,2320.0,2319.0,2.29632532]
[1770086323268,2.44249139,2320.1,2319.0,2.29632532]
[1770086323565,2.44249139,2320.1,2319.0,2.51213532]
[1770086323963,4.91533746,2321.0,2319.8,2.29632532]
[1770086324161,2.44249139,2321.0,2319.8,2.29632532]
[1770086324961,2.44553354,2321.0,2320.1,2.29632532]
[1770086325268,2.44553354,2321.0,2320.1,2.30011583]
[1770086325470,0.00304215,2321.0,2320.1,2.30011583]
[1770086325966,0.00304215,2321.0,2320.1,0.00379051]
[1770086325967,2.44249139,2320.7,2320.1,0.00379051]
[1770086326161,2.44670855,2320.7,2320.1,0.00379051]
[1770086326368,0.00421716,2320.6,2320.1,0.00379051]
[1770086326768,0.00421716,2320.5,2320.1,0.00379051]
[1770086327067,2.44553354,2321.0,2320.1,2.30011583]
[1770086327267,0.00421716,2320.9,2320.1,2.30011583]
[1770086327467,2.44553354,2321.0,2320.1,2.30011583]
[1770086327669,0.00421716,2320.9,2320.1,2.30011583]
[1770086328067,2.44670855,2320.7,2320.1,0.00379051]
[1770086328563,2.44670855,2320.6,2320.1,0.00379051]
[1770086328768,2.44249139,2320.4,2319.6,2.29632532]
[1770086329166,2.44249139,2320.9,2319.6,2.29632532]
[1770086329368,2.44249139,2320.8,2319.6,2.29632532]
[1770086329566,2.44670855,2320.8,2319.6,2.29632532]
[1770086329865,2.44670855,2320.8,2319.6,2.30154138]
[1770086330470,0.00304215,2321.0,2319.8,2.56653214]
[1770086330772,2.53920573,2321.0,2319.8,2.56653214]
[1770086333568,2.53616358,2320.6,2319.8,0.21573]
[1770086333774,0.00421716,2320.5,2319.6,0.00521606]
[1770086333975,2.53616358,2320.0,2319.6,0.00521606]
[1770086334174,2.54038074,2319.9,2319.0,0.2158]
[1770086334369,2.54038074,2319.9,2318.7,2.35080214]
[1770086334575,2.53616358,2320.2,2318.9,2.35080214]
[1770086334778,2.53616358,2320.2,2318.9,2.56661214]
[1770086335075,2.53616358,2319.9,2318.9,2.57153169]
[1770086337080,2.53616358,2320.2,2319.0,0.21581]
[1770086337281,2.53616358,2320.2,2319.3,2.35080214]
[1770086337778,2.54038074,2320.0,2319.2,0.21579]
[1770086337978,2.53616358,2320.0,2319.2,0.21579]
[1770086338171,2.54038074,2320.0,2319.2,0.21579]
[1770086338581,0.00421716,2319.9,2319.2,0.21579]
[1770086338880,0.00421716,2319.9,2319.0,2.35080214]
[1770086339081,2.53616358,2320.0,2319.0,2.35080214]
[1770086339982,2.53616358,2320.4,2319.0,2.35080214]
[1770086340175,2.54038074,2320.3,2319.0,2.35080214]
[1770086340685,2.53616358,2320.1,2319.0,2.35080214]
[1770086341078,2.54038074,2320.1,2319.0,2.35080214]
[1770086341274,2.54038074,2320.1,2319.1,0.2158]
[1770086341578,2.54038074,2320.0,2319.1,2.56660214]
[1770086341782,8.38314269,2320.7,2319.1,2.56660214]
[1770086341783,2.53616358,2320.2,2319.2,0.21579]
[1770086342080,2.75184358,2320.4,2319.0,2.35080214]
[1770086342379,2.53616358,2319.9,2318.9,3.02291955]
[1770086342575,2.53616358,2319.7,2318.9,0.00491955]
[1770086342780,2.54038074,2319.7,2318.9,0.00491955]
[1770086342978,2.53616358,2319.2,2318.9,0.00491955]
[1770086343180,2.53616358,2319.2,2318.4,2.35080214]
[1770086343779,2.53616358,2319.2,2318.3,2.96683456]
[1770086343780,2.54038074,2319.1,2318.3,2.96683456]
[1770086343985,2.53616358,2319.1,2318.3,5.3176367]
[1770086344185,2.54419398,2319.1,2318.4,2.35080214]
[1770086344384,0.00421716,2319.0,2318.4,2.35080214]
[1770086345383,2.53616358,2319.7,2318.6,2.35080214]
[1770086345784,0.00421716,2320.1,2318.3,6.62132708]
[1770086345785,2.53616358,2320.1,2319.2,2.35080214]
[1770086345985,2.53616358,2320.4,2319.2,2.35080214]
[1770086346179,2.54038074,2320.4,2319.2,2.35080214]
[1770086346478,2.54465002,2320.4,2319.2,2.35080214]
[1770086347082,2.54465002,2320.4,2319.5,2.35080214]
[1770086347083,2.54043286,2320.4,2319.5,2.35080214]
[1770086347276,0.00426928,2320.4,2319.5,2.35080214]
[1770086347682,2.54043286,2320.4,2319.5,2.35080214]
[1770086347884,0.00421716,2320.3,2319.5,2.35080214]
[1770086348283,0.00426928,2320.4,2319.5,2.56656214]
[1770086348480,2.53616358,2321.3,2320.3,2.35080214]
[1770086348788,2.53616358,2321.3,2320.3,2.56649214]
[1770086349190,0.00421716,2321.2,2320.3,2.56649214]
[1770086349489,0.00877387,2321.2,2320.3,2.57065217]
[1770086350283,2.53616358,2321.6,2320.5,2.56647214]
[1770086350589,2.53616358,2321.6,2320.3,0.00416003]
[1770086350790,2.53616358,2321.2,2320.3,2.35496217]
[1770086351285,0.00421716,2321.1,2320.3,2.35496217]
[1770086351487,2.54030353,2321.2,2320.3,0.00416003]
[1770086351683,0.00421716,2320.9,2320.3,0.00416003]
[1770086352085,0.00413995,2321.2,2320.3,2.35496217]
[1770086354394,0.00413995,2321.2,2320.3,2.57065217]
[1770086357697,0.00413995,2321.2,2320.5,2.56647214]
[1770086357899,2.53616358,2321.7,2320.7,2.35080214]
[1770086358895,2.54011216,2321.7,2320.7,2.35080214]
[1770086363604,2.54011216,2321.7,2320.6,0.21566]
[1770086363805,2.29512133,2321.5,2320.4,2.52666758]
[1770086363996,2.29512133,2321.5,2320.3,2.53082761]
[1770086364203,2.29512133,2321.5,2320.6,2.52666758]
[1770086364403,2.29512133,2321.5,2320.6,2.74232758]
[1770086364907,0.00394858,2321.7,2320.8,2.52666758]
[1770086365407,2.29906991,2321.7,2320.8,2.52666758]
[1770086366309,2.29906991,2321.7,2320.8,2.74230758]
[1770086367008,0.00394858,2321.7,2320.8,2.74230758]
[1770086367310,0.00394858,2321.7,2320.5,2.52666758]
[1770086367311,2.29906991,2321.7,2320.5,2.52666758]
[1770086371508,2.29906991,2321.7,2320.5,2.74233758]
[1770086377212,2.29512133,2321.6,2320.5,2.74233758]
[1770086378111,2.29512133,2321.5,2320.5,2.74233758]
[1770086378608,2.29512133,2321.5,2320.6,2.52666758]
[1770086380613,4.7912126,2321.7,2320.6,2.52666758]
[1770086381113,2.29512133,2321.6,2320.6,2.52666758]
[1770086381313,4.78726402,2321.6,2320.5,4.08189372]
[1770086381520,2.29512133,2321.3,2320.3,2.53082761]
[1770086381709,2.29512133,2321.3,2320.3,6.39705133]
[1770086381912,2.29512133,2321.3,2320.4,2.52666758]
[1770086385918,2.49214269,2321.4,2320.4,2.52666758]
[1770086386220,2.29512133,2321.5,2320.6,2.52666758]
[1770086386410,2.29512133,2321.4,2320.5,0.21567]
[1770086387010,2.29512133,2321.4,2320.3,2.53082761]
[1770086387614,2.29512133,2321.3,2320.3,2.53082761]
[1770086387820,2.29512133,2321.1,2320.3,0.00416003]
[1770086388016,2.29512133,2321.0,2320.1,3.017]
[1770086388212,2.29512133,2320.8,2319.7,2.52666758]
[1770086388720,2.29512133,2320.7,2319.7,2.52666758]
[1770086388916,2.29512133,2320.7,2319.7,2.52980574]
[1770086391725,2.43600427,2320.5,2319.4,2.37885951]
[1770086391920,2.43600427,2320.3,2319.2,3.017]
[1770086392817,2.43600427,2320.3,2319.2,3.02004383]
[1770086393924,2.43600427,2320.0,2318.8,2.37885951]
[1770086394521,2.43600427,2319.9,2318.8,2.37885951]
[1770086394719,2.43600427,2320.1,2318.8,2.37885951]
[1770086394918,2.44149942,2320.1,2319.1,2.37885951]
[1770086395329,2.44149942,2320.1,2319.0,0.21581]
[1770086395625,2.44149942,2320.1,2319.0,2.59466951]
[1770086399723,2.44149942,2320.1,2318.8,2.38340391]
[1770086400321,2.65720942,2320.1,2318.8,2.38340391]
[1770086400525,2.43600427,2319.4,2318.8,0.00161294]
[1770086400726,2.43600427,2319.2,2318.3,0.22196456]
[1770086401130,2.43600427,2319.2,2317.7,2.59478951]
[1770086401730,2.43600427,2319.2,2317.7,2.59931102]
[1770086402228,2.65179427,2319.2,2317.7,2.59931102]
[1770086404626,2.43600427,2318.6,2317.7,0.00452151]
[1770086404826,2.43600427,2318.5,2317.7,0.00452151]
[1770086405136,2.43600427,2318.3,2316.7,2.59487951]
[1770086405431,2.63381491,2318.7,2317.3,2.59482951]
[1770086405432,2.43600427,2318.7,2317.3,2.59482951]
[1770086405731,2.43600427,2318.7,2317.5,2.37885951]
[1770086406029,2.43600427,2318.7,2317.5,2.3828979]
[1770086406030,2.44082378,2318.7,2317.5,2.3828979]
[1770086406330,2.44082378,2318.7,2317.5,0.00403839]
[1770086406624,2.43600427,2318.5,2317.5,0.00403839]
[1770086410829,2.43600427,2318.5,2317.5,2.3828979]
[1770086411228,2.43600427,2318.5,2317.5,0.00403839]
[1770086411929,2.43600427,2318.5,2317.5,2.3828979]
[1770086412129,2.43600427,2318.5,2317.5,0.00403839]
[1770086413123,2.43600427,2318.5,2317.5,2.3828979]
[1770086413832,0.00481951,2318.7,2317.5,2.3828979]
[1770086414428,0.00481951,2318.7,2317.6,0.21593]
[1770086414632,0.00481951,2318.7,2317.7,2.59477951]
[1770086415332,0.00481951,2318.7,2317.9,2.59476951]
[1770086415535,2.43600427,2319.3,2317.9,2.59476951]
[1770086416026,2.65180427,2319.1,2317.9,2.37885951]
[1770086416532,2.65667412,2319.1,2317.6,2.37885951]
[1770086419535,2.43600427,2318.9,2317.6,2.37885951]
[1770086419925,2.44087412,2319.1,2317.9,2.37885951]
[1770086420836,2.46955146,2318.9,2317.9,2.37885951]
[1770086421029,2.68539146,2318.7,2317.5,0.00403839]
[1770086423532,2.46955146,2318.4,2317.5,0.00403839]
[1770086423739,2.46955146,2318.4,2317.5,2.43628867]
[1770086423938,4.341,2318.8,2317.5,2.43628867]
[1770086423939,2.46955146,2318.7,2317.5,2.43628867]
[1770086424633,5.48955146,2318.9,2317.5,2.43628867]
[1770086425438,0.00486985,2319.1,2318.1,2.43225028]